fUST/lending_fUST_20260312
["ID","MTS","AMOUNT","RATE_DAILY","PERIOD"]
[408212502,1773246650576,-267.20755,0.00013699,2]
[408212503,1773246650585,-500.0,0.00013699,2]
[408212506,1773246650595,-500.0,0.00013699,2]
[408212508,1773246650605,-253.51967509,0.00013699,2]
[408212510,1773246650614,-500.0,0.00013699,2]
[408212511,1773246650624,-500.0,0.00013699,2]
[408212514,1773246650633,-500.0,0.00013699,2]
[408212516,1773246650643,-500.0,0.00013699,2]
[408212517,1773246650654,-500.0,0.00013699,2]
[408212519,1773246650665,-500.0,0.00013699,2]
[408212521,1773246650674,-462.72159339,0.00013699,2]
[408212541,1773246650844,-500.0,0.00013699,2]
[408212544,1773246650873,-500.0,0.00013699,2]
[408212546,1773246650883,-500.0,0.00013699,2]
[408212548,1773246650892,-500.0,0.00013699,2]
[408212550,1773246650901,-500.0,0.00013699,2]
[408212552,1773246650910,-500.0,0.00013699,2]
[408212554,1773246650920,-500.0,0.00013699,2]
[408212556,1773246650929,-500.0,0.00013699,2]
[408212558,1773246650938,-500.0,0.00013699,2]
[408212560,1773246650948,-500.0,0.00013699,2]
[408212562,1773246650958,-500.0,0.00013699,2]
[408212564,1773246650967,-500.0,0.00013699,2]
[408212566,1773246650977,-500.0,0.00013699,2]
[408212568,1773246650987,-500.0,0.00013699,2]
[408212570,1773246650996,-500.0,0.00013699,2]
[408212572,1773246651006,-500.0,0.00013699,2]
[408212574,1773246651015,-500.0,0.00013699,2]
[408212576,1773246651025,-500.0,0.00013699,2]
[408212578,1773246651035,-500.0,0.00013699,2]
[408212580,1773246651044,-500.0,0.00013699,2]
[408212582,1773246651054,-500.0,0.00013699,2]
[408212584,1773246651063,-500.0,0.00013699,2]
[408212586,1773246651072,-500.0,0.00013699,2]
[408212589,1773246651083,-165.03070657,0.00013699,2]
[408212591,1773246651095,-305.12282295,0.00013699,2]
[408212593,1773246651106,-500.0,0.00013699,2]
[408212595,1773246651115,-539.28812154,0.00013699,2]
[408212597,1773246651124,-159.70820892,0.00013699,2]
[408212599,1773246651134,-500.0,0.00013699,2]
[408212601,1773246651144,-500.39676254,0.00013699,2]
[408212603,1773246651153,-515.61359995,0.00013699,2]
[408212605,1773246651162,-2000.0,0.00013699,7]
[408212607,1773246651173,-500.0,0.00013699,2]
[408212609,1773246651182,-150.0,0.00013699,2]
[408212611,1773246651192,-500.0,0.00013699,2]
[408212613,1773246651201,-500.0,0.00013699,2]
[408212615,1773246651210,-527.93321301,0.00013699,2]
[408212617,1773246651219,-500.0,0.00013699,2]
[408212619,1773246651228,-500.0,0.00013699,2]
[408212621,1773246651237,-500.0,0.00013699,2]
[408212623,1773246651246,-500.0,0.00013699,2]
[408212625,1773246651255,-500.0,0.00013699,2]
[408212627,1773246651264,-500.0,0.00013699,2]
[408212629,1773246651273,-500.0,0.00013699,2]
[408212631,1773246651282,-500.0,0.00013699,2]
[408212633,1773246651292,-500.0,0.00013699,2]
[408212635,1773246651301,-500.0,0.00013699,2]
[408212637,1773246651309,-500.0,0.00013699,2]
[408212639,1773246651318,-500.0,0.00013699,2]
[408212641,1773246651327,-500.0,0.00013699,2]
[408212643,1773246651337,-523.073653,0.00013699,2]
[408212645,1773246651347,-500.0,0.00013699,2]
[408212647,1773246651356,-500.0,0.00013699,2]
[408212649,1773246651365,-500.0,0.00013699,2]
[408212651,1773246651374,-167.53020512,0.00013699,2]
[408212653,1773246651383,-500.0,0.00013699,2]
[408212654,1773246651393,-500.0,0.00013699,2]
[408212656,1773246651402,-500.0,0.00013699,2]
[408212658,1773246651411,-1000.0,0.00013699,2]
[408212660,1773246651421,-500.0,0.00013699,2]
[408212662,1773246651430,-587.69416294,0.00013699,2]
[408212665,1773246651440,-3000.0,0.00013714,2]
[408212666,1773246651449,-171.4181021,0.0001374,14]
[408212668,1773246651458,-616.4825745,0.00013748,14]
[408212671,1773246651468,-1000.0,0.00013753,2]
[408212672,1773246651477,-1000.0,0.00013753,2]
[408212674,1773246651486,-948.0,0.000139,2]
[408212677,1773246651495,-2982.60894464,0.00013906,2]
[408212679,1773246651504,-235.89894432,0.00013909,7]
[408212681,1773246651513,-302.73817972,0.0001391,5]
[408212683,1773246651523,-200.0,0.00013912,120]
[408212685,1773246651532,-197.02369014,0.00014051,7]
[408212687,1773246651540,-174.84620018,0.00014153,14]
[408212689,1773246651549,-1000.0,0.00014247,2]
[408212690,1773246651558,-1000.0,0.00014247,2]
[408212692,1773246651567,-1000.0,0.00014247,2]
[408212694,1773246651577,-1000.0,0.00014247,2]
[408212696,1773246651586,-1000.0,0.00014247,2]
[408212699,1773246651597,-1000.0,0.00014247,2]
[408212701,1773246651606,-1000.0,0.00014247,2]
[408212703,1773246651616,-1000.0,0.00014247,2]
[408212704,1773246651625,-1000.0,0.00014247,2]
[408212707,1773246651634,-1000.0,0.00014247,2]
[408212709,1773246651643,-1000.0,0.00014247,2]
[408212710,1773246651652,-600.27483548,0.00014247,2]
[408212712,1773246651661,-1000.0,0.00014247,2]
[408212715,1773246651672,-1000.0,0.00014247,2]
[408212717,1773246651681,-1000.0,0.00014247,2]
[408212719,1773246651691,-1000.0,0.00014247,2]
[408212721,1773246651700,-1000.0,0.00014247,2]
[408212722,1773246651711,-1000.0,0.00014247,2]
[408212725,1773246651720,-896.18051749,0.00014247,2]
[408212726,1773246651729,-1000.36679811,0.00014247,2]
[408212728,1773246651739,-685.37662907,0.00014247,2]
[408212731,1773246651748,-1000.0,0.00014247,2]
[408212733,1773246651757,-1000.0,0.00014247,2]
[408212734,1773246651767,-1000.0,0.00014247,2]
[408212736,1773246651777,-1000.0,0.00014247,2]
[408212738,1773246651786,-1000.0,0.00014247,2]
[408212741,1773246651795,-1000.0,0.00014247,2]
[408212742,1773246651804,-1000.0,0.00014247,2]
[408212744,1773246651813,-1000.0,0.00014247,2]
[408212746,1773246651822,-1000.0,0.00014247,2]
[408212748,1773246651831,-1000.0,0.00014247,2]
[408212750,1773246651840,-1000.0,0.00014247,2]
[408212752,1773246651849,-1000.0,0.00014247,2]
[408212755,1773246651859,-1135.22589006,0.00014247,2]
[408212757,1773246651868,-250.0,0.00014247,2]
[408212758,1773246651877,-1000.0,0.00014247,2]
[408212761,1773246651886,-1000.0,0.00014247,2]
[408212763,1773246651897,-1000.0,0.00014247,2]
[408212764,1773246651906,-674.43808647,0.00014247,2]
[408212765,1773246651915,-388.26471757,0.00014247,2]
[408212766,1773246651924,-1000.0,0.00014247,2]
[408212767,1773246651933,-1000.0,0.00014247,2]
[408212769,1773246651942,-1000.0,0.00014247,2]
[408212771,1773246651951,-1000.0,0.00014247,2]
[408212773,1773246651960,-1000.0,0.00014247,2]
[408212775,1773246651970,-1000.0,0.00014247,2]
[408212777,1773246651980,-1000.0,0.00014247,2]
[408212779,1773246651990,-1000.0,0.00014247,2]
[408212781,1773246651999,-1000.0,0.00014247,2]
[408212783,1773246652008,-1000.0,0.00014247,2]
[408212785,1773246652018,-1000.0,0.00014247,2]
[408212787,1773246652027,-1000.0,0.00014247,2]
[408212789,1773246652036,-1000.0,0.00014247,2]
[408212791,1773246652045,-1000.0,0.00014247,2]
[408212793,1773246652054,-1000.0,0.00014247,2]
[408212795,1773246652068,-1000.0,0.00014247,2]
[408212797,1773246652077,-3300.0,0.00014262,2]
[408212800,1773246652086,-2000.0,0.00014329,7]
[408212802,1773246652100,-150.0,0.00014406,2]
[408212804,1773246652111,-170.45188775,0.00014436,14]
[408212805,1773246652120,-500.0,0.00014444,2]
[408212807,1773246652130,-500.0,0.00014444,2]
[408212809,1773246652139,-500.0,0.00014444,2]
[408212811,1773246652148,-500.0,0.00014444,2]
[408212814,1773246652158,-500.0,0.00014444,2]
[408212816,1773246652168,-524.30530192,0.00014444,2]
[408212817,1773246652178,-184.73724448,0.0001445,2]
[408212819,1773246652187,-3092.96547559,0.00014454,2]
[408212821,1773246652197,-616.4825745,0.00014457,14]
[408212823,1773246652206,-193.0737413,0.00014458,2]
[408212825,1773246652216,-196.130752,0.00014458,2]
[408212827,1773246652225,-429.2113,0.000145,2]
[408212829,1773246652235,-427.4304,0.000145,2]
[408212831,1773246652244,-232.67935141,0.000145,2]
[408212833,1773246652254,-453.79,0.000145,2]
[408212835,1773246652264,-2018.04,0.000145,2]
[408212837,1773246652273,-1500.935,0.000145,2]
[408212839,1773246652282,-1500.93,0.000145,2]
[408212841,1773246652291,-1214.325,0.000145,2]
[408212844,1773246652300,-1214.32,0.000145,2]
[408212845,1773246652309,-1496.07,0.000145,2]
[408212847,1773246652318,-1496.07,0.000145,2]
[408212850,1773246652327,-1210.39,0.000145,2]
[408212852,1773246652336,-1210.39,0.000145,2]
[408212854,1773246652345,-1207.883,0.000145,2]
[408212856,1773246652354,-1207.883,0.000145,2]
[408212858,1773246652363,-1207.88,0.000145,2]
[408212860,1773246652371,-857.04,0.000145,2]
[408212862,1773246652380,-1306.905,0.000145,2]
[408212864,1773246652389,-1306.9,0.000145,2]
[408212865,1773246652398,-2694.596,0.000145,2]
[408212867,1773246652407,-2694.596,0.000145,2]
[408212870,1773246652416,-2694.59,0.000145,2]
[408212872,1773246652426,-574.2528,0.000145,2]
[408212873,1773246652435,-337.51,0.000145,2]
[408212876,1773246652445,-1632.69,0.000145,2]
[408212878,1773246652455,-1500.935,0.000145,2]
[408212880,1773246652464,-1500.93,0.000145,2]
[408212882,1773246652474,-1214.325,0.000145,2]
[408212884,1773246652483,-1214.32,0.000145,2]
[408212886,1773246652493,-312.8606,0.000145,2]
[408212888,1773246652502,-227.68951305,0.00014504,14]
[408212889,1773246652511,-604.71634032,0.00014529,14]
[408212891,1773246652520,-100000.0,0.0001459,2]
[408212893,1773246652529,-200.0,0.00014659,120]
[408212895,1773246652538,-167.73418729,0.00014715,14]
[408212897,1773246652547,-1500.0,0.00014795,2]
[408212899,1773246652556,-1500.0,0.00014795,2]
[408212901,1773246652565,-1500.0,0.00014795,2]
[408212903,1773246652574,-1500.0,0.00014795,2]
[408212906,1773246652584,-1500.0,0.00014795,2]
[408212908,1773246652595,-998.85881811,0.00014795,2]
[408212910,1773246652604,-917.50927264,0.00014795,2]
[408212912,1773246652615,-1500.0,0.00014795,2]
[408212914,1773246652625,-1137.9586509,0.00014795,2]
[408212916,1773246652634,-1500.0,0.00014795,2]
[408212918,1773246652644,-1500.0,0.00014795,2]
[408212920,1773246652653,-1500.0,0.00014795,2]
[408212922,1773246652662,-1500.0,0.00014795,2]
[408212924,1773246652672,-1500.0,0.00014795,2]
[408212926,1773246652681,-548.51885129,0.00014795,2]
[408212928,1773246652690,-1500.0,0.00014795,2]
[408212930,1773246652699,-1500.0,0.00014795,2]
[408212932,1773246652709,-1500.0,0.00014795,2]
[408212934,1773246652718,-1500.0,0.00014795,2]
[408212936,1773246652728,-1500.0,0.00014795,2]
[408212938,1773246652737,-341.5411832,0.00014795,2]
[408212940,1773246652747,-1500.0,0.00014795,2]
[408212942,1773246652756,-1500.0,0.00014795,2]
[408212944,1773246652765,-1500.0,0.00014795,2]
[408212946,1773246652774,-458.23880389,0.00014795,2]
[408212948,1773246652784,-1470.52480508,0.00014795,2]
[408212950,1773246652793,-901.1116602,0.00014795,2]
[408212952,1773246652802,-1500.0,0.00014795,2]
[408212954,1773246652811,-1500.0,0.00014795,2]
[408212956,1773246652820,-350.0,0.00014795,2]
[408212958,1773246652830,-948.47152401,0.00014795,2]
[408212960,1773246652840,-1500.0,0.00014795,2]
[408212962,1773246652850,-1500.0,0.00014795,2]
[408212964,1773246652859,-1500.0,0.00014795,2]
[408212966,1773246652868,-1500.0,0.00014795,2]
[408212968,1773246652877,-1500.0,0.00014795,2]
[408212970,1773246652886,-1500.0,0.00014795,2]
[408212972,1773246652895,-1500.0,0.00014795,2]
[408212974,1773246652904,-1500.0,0.00014795,2]
[408212977,1773246652915,-1500.0,0.00014795,2]
[408212978,1773246652925,-1500.0,0.00014795,2]
[408212980,1773246652935,-151.48510329,0.00014795,2]
[408212983,1773246652945,-1500.0,0.00014795,2]
[408212985,1773246652954,-1500.0,0.00014795,2]
[408212987,1773246652963,-1500.0,0.00014795,2]
[408212989,1773246652973,-1500.0,0.00014795,2]
[408212991,1773246652982,-1500.0,0.00014795,2]
[408212993,1773246652992,-1500.0,0.00014795,2]
[408212995,1773246653001,-1500.0,0.00014795,2]
[408212997,1773246653010,-3600.0,0.0001481,2]
[408212999,1773246653020,-200.0,0.00014828,120]
[408213001,1773246653030,-598.78655903,0.000149,2]
[408213003,1773246653039,-6000.0,0.000149,2]
[408213005,1773246653048,-2000.0,0.000149,2]
[408213007,1773246653057,-1372.97624933,0.000149,2]
[408213009,1773246653067,-2000.0,0.00014959,7]
[408213011,1773246653076,-300.0,0.00015,90]
[408213013,1773246653084,-853.15,0.00015,2]
[408213015,1773246653095,-11434.0,0.00015,2]
[408213017,1773246653106,-1025.7392433,0.00015,2]
[408213019,1773246653115,-151.9375046,0.00015,2]
[408213021,1773246653124,-20000.0,0.00015,2]
[408213023,1773246653134,-1000.0,0.00015,2]
[408213025,1773246653143,-17000.0,0.00015,2]
[408213027,1773246653152,-260.0,0.00015,3]
[408213029,1773246653162,-261.0,0.00015,3]
[408213031,1773246653172,-7007.4585796,0.00015,2]
[408213033,1773246653181,-7000.0,0.00015,90]
[408213035,1773246653190,-297.75211109,0.00015,90]
[408213037,1773246653199,-3708.0,0.00015,2]
[408213039,1773246653208,-5094.0,0.00015,2]
[408213041,1773246653217,-3207.40519818,0.00015002,2]
[408213043,1773246653226,-805.474333,0.00015068,2]
[408213045,1773246653237,-202.65678292,0.00015068,2]
[408213047,1773246653246,-498.54833472,0.00015069,2]
[408213049,1773246653256,-201.92,0.000151,2]
[408213051,1773246653266,-1000.0,0.00015128,2]
[408213053,1773246653277,-1000.0,0.00015128,2]
[408213055,1773246653286,-579.0,0.00015128,2]
[408213057,1773246653296,-166.61998521,0.00015142,14]
[408213059,1773246653305,-156.0,0.00015143,2]
[408213061,1773246653314,-195.21742649,0.00015167,14]
[408213063,1773246653324,-616.4825745,0.00015167,14]
[408213065,1773246653333,-196.130752,0.00015228,2]
[408213067,1773246653343,-189.56470833,0.0001526,3]
[408213069,1773246653352,-500.0,0.000153,2]
[408213072,1773246653363,-1121.1533825,0.00015342,2]
[408213074,1773246653372,-2000.0,0.00015342,2]
[408213076,1773246653381,-2000.0,0.00015342,2]
[408213078,1773246653390,-2000.0,0.00015342,2]
[408213080,1773246653401,-645.20233195,0.00015342,2]
[408213082,1773246653410,-2000.0,0.00015342,2]
[408213083,1773246653419,-2000.0,0.00015342,2]
[408213086,1773246653429,-964.36483711,0.00015342,2]
[408213088,1773246653439,-1859.94539768,0.00015342,2]
[408213090,1773246653449,-2000.0,0.00015342,2]
[408213092,1773246653459,-2066.68760788,0.00015342,2]
[408213094,1773246653468,-2000.0,0.00015342,2]
[408213095,1773246653477,-2000.0,0.00015342,2]
[408213097,1773246653487,-562.01721314,0.00015342,2]
[408213099,1773246653497,-1708.40851082,0.00015342,2]
[408213118,1773246653665,-2037.24592999,0.00015342,2]
[408213120,1773246653675,-2000.0,0.00015342,2]
[408213122,1773246653685,-153.39612121,0.00015342,2]
[408213124,1773246653695,-2000.0,0.00015342,2]
[408213126,1773246653704,-1897.88059521,0.00015342,2]
[408213128,1773246653714,-247.7260111,0.00015342,2]
[408213130,1773246653723,-405.09408316,0.00015342,2]
[408213132,1773246653732,-2000.0,0.00015342,2]
[408213134,1773246653742,-931.81031022,0.00015342,2]
[408213136,1773246653751,-2000.0,0.00015342,2]
[408213138,1773246653761,-1531.73903467,0.00015342,2]
[408213140,1773246653770,-2000.0,0.00015342,2]
[408213142,1773246653780,-2000.0,0.00015342,2]
[408213144,1773246653789,-2000.0,0.00015342,2]
[408213146,1773246653799,-2000.0,0.00015342,2]
[408213148,1773246653808,-1348.65597024,0.00015342,2]
[408213150,1773246653818,-2000.0,0.00015342,2]
[408213152,1773246653828,-2000.0,0.00015342,2]
[408213154,1773246653839,-2000.0,0.00015342,2]
[408213156,1773246653849,-1695.70699215,0.00015342,2]
[408213158,1773246653859,-2000.0,0.00015342,2]
[408213160,1773246653869,-2000.0,0.00015342,2]
[408213162,1773246653879,-2000.0,0.00015342,2]
[408213164,1773246653888,-2000.0,0.00015342,2]
[408213166,1773246653898,-235.44836063,0.00015358,2]
[408213168,1773246653907,-230.94523883,0.0001536,120]
[408213170,1773246653916,-291.49291134,0.00015365,14]
[408213172,1773246653926,-227.68951305,0.00015365,14]
[408213174,1773246653935,-253.02396013,0.00015365,14]
[408213176,1773246653944,-604.71634032,0.00015395,14]
[408213178,1773246653952,-259.83651326,0.00015395,14]
[408213180,1773246653962,-359.70100543,0.00015395,14]
[408213182,1773246653971,-200.0,0.00015405,120]
[408213184,1773246653980,-1500.0,0.00015479,2]
[408213186,1773246653989,-1000.0,0.000155,2]
[408213188,1773246653998,-171.4181021,0.0001551,14]
[408213190,1773246654008,-1555.5,0.00015534,2]
[408213192,1773246654017,-3326.07919052,0.0001555,2]
[408213194,1773246654026,-2000.0,0.00015589,7]
[408213196,1773246654036,-1613.0535,0.00015589,2]
[408213198,1773246654045,-2214.76486836,0.0001564,2]
[408213200,1773246654054,-1672.7364795,0.00015644,2]
[408213202,1773246654063,-5885.81079165,0.00015696,2]
[408213204,1773246654072,-1734.62772924,0.00015699,2]
[408213206,1773246654082,-1147.84,0.000157,5]
[408213208,1773246654091,-500.0,0.000157,2]
[408213210,1773246654105,-1798.80895522,0.00015754,2]
[408213213,1773246654115,-235.89894432,0.00015764,14]
[408213215,1773246654124,-851.9333878,0.000158,2]
[408213216,1773246654134,-160.2,0.000158,2]
[408213219,1773246654144,-256.0,0.00015808,3]
[408213221,1773246654154,-1865.36488657,0.00015809,2]
[408213223,1773246654162,-170.45188775,0.00015848,14]
[408213225,1773246654174,-1934.38338737,0.00015864,2]
[408213227,1773246654183,-616.4825745,0.00015876,30]
[408213229,1773246654192,-569.74069681,0.0001589,2]
[408213231,1773246654201,-2206.92697335,0.0001589,2]
[408213233,1773246654210,-712.85660115,0.0001589,2]
[408213235,1773246654220,-194.59495416,0.0001589,2]
[408213237,1773246654229,-669.58901603,0.0001589,2]
[408213239,1773246654241,-527.48697493,0.0001589,2]
[408213241,1773246654251,-2500.0,0.0001589,2]
[408213243,1773246654260,-2500.0,0.0001589,2]
[408213245,1773246654269,-2500.0,0.0001589,2]
[408213247,1773246654278,-2500.0,0.0001589,2]
[408213248,1773246654288,-571.45190737,0.0001589,2]
[408213251,1773246654297,-2500.0,0.0001589,2]
[408213253,1773246654307,-2032.02836294,0.0001589,2]
[408213254,1773246654316,-207.25121138,0.0001589,2]
[408213256,1773246654326,-985.37442588,0.0001589,2]
[408213258,1773246654335,-455.86286431,0.0001589,2]
[408213260,1773246654347,-339.5985835,0.0001589,2]
[408213262,1773246654357,-2296.97110296,0.0001589,2]
[408213264,1773246654367,-2310.32988569,0.0001589,2]
[408213266,1773246654376,-2500.0,0.0001589,2]
[408213268,1773246654386,-2500.0,0.0001589,2]
[408213270,1773246654396,-2500.0,0.0001589,2]
[408213273,1773246654405,-1393.84824016,0.0001589,2]
[408213274,1773246654414,-2000.0,0.000159,2]
[408213276,1773246654424,-2005.9555727,0.00015919,2]
[408213278,1773246654433,-1683.19976803,0.0001592,3]
[408213281,1773246654444,-837.46851943,0.00015974,2]
[408213282,1773246654453,-197.02369014,0.00015977,14]
[408213284,1773246654462,-500.0,0.00016,2]
[408213286,1773246654471,-24272.0,0.00016,2]
[408213288,1773246654481,-217.34511564,0.00016,2]
[408213290,1773246654490,-1000.0,0.00016,2]
[408213292,1773246654499,-3000.0,0.00016,2]
[408213294,1773246654508,-1000.0,0.00016,2]
[408213296,1773246654517,-3000.0,0.0001601,2]
[408213298,1773246654526,-3000.0,0.0001602,2]
[408213300,1773246654535,-3000.0,0.0001603,2]
[408213302,1773246654545,-3000.0,0.0001604,2]
[408213304,1773246654555,-3000.0,0.0001605,2]
[408213306,1773246654564,-3000.0,0.0001606,2]
[408213308,1773246654574,-3000.0,0.0001607,2]
[408213310,1773246654584,-3000.0,0.0001608,2]
[408213313,1773246654594,-3000.0,0.0001609,2]
[408213315,1773246654604,-3449.14412057,0.00016098,2]
[408213316,1773246654613,-199.44679002,0.000161,2]
[408213318,1773246654622,-3000.0,0.000161,2]
[408213320,1773246654631,-3000.0,0.0001611,2]
[408213322,1773246654640,-3000.0,0.0001612,2]
[408213324,1773246654650,-3000.0,0.0001613,2]
[408213326,1773246654659,-174.84620018,0.0001613,30]
[408213328,1773246654669,-3000.0,0.0001614,2]
[408213330,1773246654678,-3000.0,0.0001615,2]
[408213332,1773246654688,-3000.0,0.0001616,2]
[408213334,1773246654698,-3000.0,0.0001617,2]
[408213336,1773246654707,-3000.0,0.0001618,2]
[408213339,1773246654717,-3000.0,0.0001619,2]
[408213340,1773246654726,-3000.0,0.000162,2]
[408213342,1773246654735,-3000.0,0.0001621,2]
[408213344,1773246654745,-2000.0,0.00016219,7]
[408213346,1773246654755,-3000.0,0.0001622,2]
[408213348,1773246654764,-227.68951305,0.00016226,14]
[408213350,1773246654774,-3000.0,0.0001623,2]
[408213352,1773246654785,-3000.0,0.0001624,2]
[408213354,1773246654794,-3000.0,0.0001625,2]
[408213356,1773246654804,-3000.0,0.0001626,2]
[408213358,1773246654814,-307.23177733,0.00016261,14]
[408213360,1773246654824,-283.27488715,0.00016261,14]
[408213362,1773246654834,-604.71634032,0.00016261,14]
[408213365,1773246654845,-3000.0,0.0001627,2]
[408213366,1773246654856,-3000.0,0.0001628,2]
[408213368,1773246654865,-3000.0,0.0001629,2]
[408213370,1773246654874,-3000.0,0.000163,2]
[408213372,1773246654884,-3000.0,0.0001631,2]
[408213374,1773246654893,-3000.0,0.0001632,2]
[408213376,1773246654903,-537.53946814,0.00016329,30]
[408213378,1773246654912,-3000.0,0.0001633,2]
[408213380,1773246654921,-3000.0,0.0001634,2]
[408213382,1773246654930,-3000.0,0.0001635,2]
[408213384,1773246654939,-3000.0,0.0001636,2]
[408213386,1773246654948,-378.94839154,0.00016366,30]
[408213389,1773246654958,-3000.0,0.0001637,2]
[408213391,1773246654967,-3000.0,0.0001638,2]
[408213392,1773246654976,-3000.0,0.0001639,2]
[408213394,1773246654985,-3000.0,0.000164,2]
[408213396,1773246654994,-3000.0,0.0001641,2]
[408213398,1773246655003,-3000.0,0.0001642,2]
[408213400,1773246655012,-613.3095,0.00016428,2]
[408213403,1773246655021,-613.3095,0.00016428,2]
[408213404,1773246655031,-613.3095,0.00016428,2]
[408213406,1773246655040,-3000.0,0.0001643,2]
[408213408,1773246655050,-200.0,0.00016438,2]
[408213410,1773246655059,-699.4,0.00016438,2]
[408213412,1773246655069,-251.61,0.00016438,7]
[408213414,1773246655078,-200.0,0.00016438,3]
[408213416,1773246655088,-200.0,0.00016438,3]
[408213418,1773246655103,-200.0,0.00016438,3]
[408213420,1773246655112,-200.0,0.00016438,3]
[408213422,1773246655121,-200.0,0.00016438,3]
[408213424,1773246655131,-200.0,0.00016438,3]
[408213426,1773246655141,-151.0,0.00016438,2]
[408213428,1773246655150,-151.0,0.00016438,2]
[408213430,1773246655160,-151.0,0.00016438,2]
[408213432,1773246655172,-151.0,0.00016438,2]
[408213434,1773246655181,-151.0,0.00016438,2]
[408213436,1773246655190,-151.0,0.00016438,2]
[408213438,1773246655199,-151.0,0.00016438,2]
[408213440,1773246655208,-151.0,0.00016438,2]
[408213442,1773246655218,-151.0,0.00016438,2]
[408213444,1773246655227,-151.0,0.00016438,2]
[408213446,1773246655236,-151.0,0.00016438,2]
[408213448,1773246655245,-151.0,0.00016438,2]
[408213450,1773246655255,-151.0,0.00016438,2]
[408213452,1773246655264,-217.099708,0.00016438,2]
[408213454,1773246655273,-150.0,0.00016438,2]
[408213456,1773246655282,-151.0,0.00016438,2]
[408213458,1773246655291,-151.0,0.00016438,2]
[408213460,1773246655300,-151.0,0.00016438,2]
[408213462,1773246655309,-151.0,0.00016438,2]
[408213464,1773246655318,-151.0,0.00016438,2]
[408213466,1773246655327,-151.0,0.00016438,2]
[408213468,1773246655336,-151.0,0.00016438,2]
[408213470,1773246655346,-151.0,0.00016438,2]
[408213472,1773246655356,-151.0,0.00016438,2]
[408213474,1773246655365,-246.510131,0.00016438,2]
[408213476,1773246655375,-151.0,0.00016438,2]
[408213478,1773246655384,-151.0,0.00016438,2]
[408213480,1773246655394,-151.0,0.00016438,2]
[408213482,1773246655403,-151.0,0.00016438,2]
[408213484,1773246655412,-151.0,0.00016438,2]
[408213486,1773246655422,-151.0,0.00016438,2]
[408213488,1773246655431,-151.0,0.00016438,2]
[408213490,1773246655440,-151.0,0.00016438,2]
[408213492,1773246655449,-151.0,0.00016438,2]
[408213494,1773246655458,-151.0,0.00016438,2]
[408213496,1773246655467,-151.0,0.00016438,2]
[408213498,1773246655476,-151.0,0.00016438,2]
[408213500,1773246655486,-151.0,0.00016438,2]
[408213502,1773246655495,-151.0,0.00016438,2]
[408213504,1773246655504,-249.74390281,0.00016438,2]
[408213506,1773246655514,-151.0,0.00016438,2]
[408213508,1773246655523,-151.0,0.00016438,2]
[408213510,1773246655532,-151.0,0.00016438,2]
[408213512,1773246655542,-151.0,0.00016438,2]
[408213514,1773246655553,-151.0,0.00016438,2]
[408213516,1773246655563,-151.0,0.00016438,2]
[408213518,1773246655572,-151.0,0.00016438,2]
[408213520,1773246655582,-151.0,0.00016438,2]
[408213522,1773246655592,-151.0,0.00016438,2]
[408213524,1773246655601,-151.0,0.00016438,2]
[408213526,1773246655610,-151.0,0.00016438,2]
[408213527,1773246655620,-266.208208,0.00016438,2]
[408213529,1773246655629,-1000.0,0.00016438,2]
[408213531,1773246655638,-1000.0,0.00016438,2]
[408213533,1773246655647,-3000.0,0.00016438,2]